[Event "Titled Tuesday Blitz March 14 Early 2023"]
[White "Loiacono, Antonio"]
[Black "Van Foreest, Jorden"]
[WhiteFideId "895415"]
[BlackFideId "1039784"]
[WhiteElo "2257"]
[BlackElo "2633"]
[Result "0-1"]
[Round "01"]
[TimeControl "180+2"]
[Date "2023.03.14"]
[WhiteClock "0:00:07"]
[BlackClock "0:01:01"]

1. e4 {[%clk 0:02:59]}  e5 {[%clk 0:02:59]} 2. Nf3 {[%clk 0:02:57]}  Nc6 {[%clk 0:03:00]} 3. Nc3 {[%clk 0:02:56]}  Nf6 {[%clk 0:02:59]} 4. Bb5 {[%clk 0:02:57]}  Bd6 {[%clk 0:02:57]} 5. d3 {[%clk 0:02:54]}  a6 {[%clk 0:02:55]} 6. Bxc6 {[%clk 0:02:51]}  dxc6 {[%clk 0:02:55]} 7. h3 {[%clk 0:02:50]}  Nd7 {[%clk 0:02:54]} 8. O-O {[%clk 0:02:49]}  O-O {[%clk 0:02:53]} 9. Nd2 {[%clk 0:02:45]}  b5 {[%clk 0:02:50]} 10. Ne2 {[%clk 0:02:39]}  Nc5 {[%clk 0:02:47]} 11. Ng3 {[%clk 0:02:30]}  Re8 {[%clk 0:02:44]} 12. Nb3 {[%clk 0:02:19]}  Ne6 {[%clk 0:02:40]} 13. Nf5 {[%clk 0:02:16]}  Bf8 {[%clk 0:02:39]} 14. Qg4 {[%clk 0:02:05]}  Kh8 {[%clk 0:02:35]} 15. Qg3 {[%clk 0:02:02]}  f6 {[%clk 0:02:35]} 16. a4 {[%clk 0:01:44]}  Rb8 {[%clk 0:02:27]} 17. h4 {[%clk 0:01:41]}  c5 {[%clk 0:02:27]} 18. h5 {[%clk 0:01:39]}  c4 {[%clk 0:02:24]} 19. dxc4 {[%clk 0:01:36]}  bxc4 {[%clk 0:02:23]} 20. Nd2 {[%clk 0:01:34]}  Nf4 {[%clk 0:01:53]} 21. Qf3 {[%clk 0:01:31]}  Be6 {[%clk 0:01:54]} 22. Re1 {[%clk 0:01:24]}  Qd7 {[%clk 0:01:47]} 23. Ne3 {[%clk 0:01:05]}  Bf7 {[%clk 0:01:45]} 24. g4 {[%clk 0:01:00]}  Qc6 {[%clk 0:01:44]} 25. Ndf1 {[%clk 0:00:56]}  c3 {[%clk 0:01:44]} 26. b3 {[%clk 0:00:55]}  Ne6 {[%clk 0:01:41]} 27. Nf5 {[%clk 0:00:54]}  Nd4 {[%clk 0:01:40]} 28. Nxd4 {[%clk 0:00:50]}  exd4 {[%clk 0:01:41]} 29. Ng3 {[%clk 0:00:50]}  Rbd8 {[%clk 0:01:38]} 30. Rd1 {[%clk 0:00:43]}  Qd7 {[%clk 0:01:29]} 31. Bf4 {[%clk 0:00:39]}  h6 {[%clk 0:01:27]} 32. Nf5 {[%clk 0:00:39]}  c5 {[%clk 0:01:28]} 33. Re1 {[%clk 0:00:37]}  Qc6 {[%clk 0:01:26]} 34. Rad1 {[%clk 0:00:36]}  Rd7 {[%clk 0:01:25]} 35. Qg2 {[%clk 0:00:31]}  d3 {[%clk 0:01:23]} 36. cxd3 {[%clk 0:00:27]}  c2 {[%clk 0:01:23]} 37. Rc1 {[%clk 0:00:27]}  Bxb3 {[%clk 0:01:24]} 38. Qg3 {[%clk 0:00:26]}  Red8 {[%clk 0:01:23]} 39. Re3 {[%clk 0:00:25]}  c4 {[%clk 0:01:22]} 40. d4 {[%clk 0:00:25]}  Ba3 {[%clk 0:01:23]} 41. d5 {[%clk 0:00:24]}  Qb6 {[%clk 0:01:15]} 42. Ree1 {[%clk 0:00:24]}  Bxc1 {[%clk 0:01:13]} 43. Rxc1 {[%clk 0:00:25]}  Bxa4 {[%clk 0:01:13]} 44. Qc3 {[%clk 0:00:24]}  Re8 {[%clk 0:01:12]} 45. e5 {[%clk 0:00:20]}  Rxd5 {[%clk 0:01:11]} 46. Nh4 {[%clk 0:00:10]}  Rd1+ {[%clk 0:01:10]} 47. Kh2 {[%clk 0:00:09]}  Qxf2+ {[%clk 0:01:09]} 48. Ng2 {[%clk 0:00:08]}  Rxc1 {[%clk 0:01:08]} 49. exf6 {[%clk 0:00:08]}  Bc6 {[%clk 0:01:00]} 50. fxg7+ {[%clk 0:00:07]}  Kh7 {[%clk 0:01:01]} 0-1


[Site "https://www.chess.com"]

[Event "Titled Tuesday Blitz March 14 Early 2023"]
[White "Lenderman, Aleksandr"]
[Black "Garakov, Mikhael"]
[WhiteFideId "2021285"]
[BlackFideId "4169034"]
[WhiteElo "2607"]
[BlackElo "2347"]
[Result "1-0"]
[Round "01"]
[TimeControl "180+2"]
[Date "2023.03.14"]
[WhiteClock "0:01:21"]
[BlackClock "0:00:06"]

1. Nf3 {[%clk 0:02:59]}  c5 {[%clk 0:02:58]} 2. d4 {[%clk 0:02:55]}  cxd4 {[%clk 0:02:57]} 3. c3 {[%clk 0:02:55]}  dxc3 {[%clk 0:02:53]} 4. Nxc3 {[%clk 0:02:55]}  Nc6 {[%clk 0:02:52]} 5. e4 {[%clk 0:02:55]}  g6 {[%clk 0:02:50]} 6. e5 {[%clk 0:02:50]}  Bg7 {[%clk 0:02:48]} 7. Bf4 {[%clk 0:02:49]}  f6 {[%clk 0:02:01]} 8. exf6 {[%clk 0:02:44]}  Nxf6 {[%clk 0:02:01]} 9. Bc4 {[%clk 0:02:43]}  d5 {[%clk 0:01:39]} 10. Nxd5 {[%clk 0:02:35]}  Nxd5 {[%clk 0:01:39]} 11. Bxd5 {[%clk 0:02:31]}  Qa5+ {[%clk 0:01:38]} 12. Qd2 {[%clk 0:02:22]}  Qxd2+ {[%clk 0:01:37]} 13. Bxd2 {[%clk 0:02:23]}  Bxb2 {[%clk 0:01:29]} 14. Rb1 {[%clk 0:02:23]}  Bf6 {[%clk 0:01:29]} 15. O-O {[%clk 0:02:22]}  e6 {[%clk 0:01:27]} 16. Rfe1 {[%clk 0:02:18]}  O-O {[%clk 0:01:14]} 17. Bxe6+ {[%clk 0:02:13]}  Bxe6 {[%clk 0:01:12]} 18. Rxe6 {[%clk 0:02:14]}  Nd4 {[%clk 0:01:01]} 19. Rxf6 {[%clk 0:02:09]}  Rxf6 {[%clk 0:00:53]} 20. Nxd4 {[%clk 0:02:09]}  Rb6 {[%clk 0:00:46]} 21. Rc1 {[%clk 0:02:01]}  Rb2 {[%clk 0:00:42]} 22. Be3 {[%clk 0:02:00]}  Rxa2 {[%clk 0:00:39]} 23. h4 {[%clk 0:02:00]}  a5 {[%clk 0:00:19]} 24. Rc7 {[%clk 0:01:59]}  a4 {[%clk 0:00:19]} 25. Ne6 {[%clk 0:01:57]}  Ra1+ {[%clk 0:00:11]} 26. Kh2 {[%clk 0:01:49]}  Rd1 {[%clk 0:00:12]} 27. Bh6 {[%clk 0:01:21]}  Rd6 {[%clk 0:00:07]} 28. Rg7+ {[%clk 0:01:20]}  Kh8 {[%clk 0:00:06]} 29. Ng5 {[%clk 0:01:21]} 1-0


[Site "https://www.chess.com"]

[Event "Titled Tuesday Blitz March 14 Early 2023"]
[White "Janaszak, Dawid"]
[Black "Sjugirov, Sanan"]
[WhiteFideId "1119206"]
[BlackFideId "4189302"]
[WhiteElo "2220"]
[BlackElo "2569"]
[Result "0-1"]
[Round "01"]
[TimeControl "180+2"]
[Date "2023.03.14"]
[WhiteClock "0:00:02"]
[BlackClock "0:00:02"]

1. e4 {[%clk 0:02:59]}  c5 {[%clk 0:02:59]} 2. Nc3 {[%clk 0:02:59]}  Nc6 {[%clk 0:02:56]} 3. Bb5 {[%clk 0:02:58]}  Nd4 {[%clk 0:02:55]} 4. Nf3 {[%clk 0:02:58]}  a6 {[%clk 0:02:54]} 5. Bd3 {[%clk 0:02:57]}  g6 {[%clk 0:02:53]} 6. b4 {[%clk 0:02:56]}  Nxf3+ {[%clk 0:02:38]} 7. Qxf3 {[%clk 0:02:56]}  cxb4 {[%clk 0:02:39]} 8. Nd5 {[%clk 0:02:56]}  Bg7 {[%clk 0:02:38]} 9. Rb1 {[%clk 0:02:56]}  e6 {[%clk 0:02:33]} 10. Ne3 {[%clk 0:02:54]}  Ne7 {[%clk 0:02:23]} 11. Rxb4 {[%clk 0:02:50]}  Nc6 {[%clk 0:02:22]} 12. Bb2 {[%clk 0:02:48]}  O-O {[%clk 0:02:02]} 13. Bxg7 {[%clk 0:02:43]}  Kxg7 {[%clk 0:02:03]} 14. Rb1 {[%clk 0:02:36]}  b5 {[%clk 0:01:59]} 15. O-O {[%clk 0:02:22]}  Bb7 {[%clk 0:01:56]} 16. Qf4 {[%clk 0:02:17]}  Qb8 {[%clk 0:01:28]} 17. Qh4 {[%clk 0:02:04]}  Qd8 {[%clk 0:01:09]} 18. Qf4 {[%clk 0:02:01]}  Qf6 {[%clk 0:00:40]} 19. Qc7 {[%clk 0:01:55]}  Rab8 {[%clk 0:00:39]} 20. f4 {[%clk 0:01:49]}  Qd4 {[%clk 0:00:33]} 21. f5 {[%clk 0:01:38]}  Qe5 {[%clk 0:00:16]} 22. Qxe5+ {[%clk 0:00:25]}  Nxe5 {[%clk 0:00:17]} 23. f6+ {[%clk 0:00:22]}  Kg8 {[%clk 0:00:17]} 24. h3 {[%clk 0:00:20]}  Rfc8 {[%clk 0:00:15]} 25. Ng4 {[%clk 0:00:19]}  d6 {[%clk 0:00:08]} 26. Nxe5 {[%clk 0:00:16]}  dxe5 {[%clk 0:00:09]} 27. a4 {[%clk 0:00:12]}  bxa4 {[%clk 0:00:06]} 28. Rb6 {[%clk 0:00:13]}  Ba8 {[%clk 0:00:05]} 29. Rxa6 {[%clk 0:00:12]}  Bc6 {[%clk 0:00:05]} 30. Ra7 {[%clk 0:00:11]}  Be8 {[%clk 0:00:05]} 31. Ra1 {[%clk 0:00:09]}  h6 {[%clk 0:00:04]} 32. Kf2 {[%clk 0:00:09]}  g5 {[%clk 0:00:04]} 33. Ke3 {[%clk 0:00:10]}  Kh7 {[%clk 0:00:04]} 34. Ra5 {[%clk 0:00:10]}  Kg6 {[%clk 0:00:04]} 35. Rxe5 {[%clk 0:00:10]}  Kxf6 {[%clk 0:00:05]} 36. Ra5 {[%clk 0:00:10]}  Ra8 {[%clk 0:00:05]} 37. e5+ {[%clk 0:00:10]}  Ke7 {[%clk 0:00:05]} 38. Rxa8 {[%clk 0:00:10]}  Rxa8 {[%clk 0:00:06]} 39. Be4 {[%clk 0:00:10]}  Rb8 {[%clk 0:00:05]} 40. Ra3 {[%clk 0:00:11]}  f6 {[%clk 0:00:03]} 41. exf6+ {[%clk 0:00:10]}  Kxf6 {[%clk 0:00:04]} 42. c3 {[%clk 0:00:11]}  Ke5 {[%clk 0:00:03]} 43. Bc2 {[%clk 0:00:11]}  Kd6 {[%clk 0:00:02]} 44. d4 {[%clk 0:00:08]}  Bc6 {[%clk 0:00:02]} 45. c4 {[%clk 0:00:08]}  Bxg2 {[%clk 0:00:02]} 46. Rxa4 {[%clk 0:00:07]}  Bxh3 {[%clk 0:00:02]} 47. Ra6+ {[%clk 0:00:08]}  Ke7 {[%clk 0:00:03]} 48. Ra7+ {[%clk 0:00:08]}  Kf6 {[%clk 0:00:03]} 49. c5 {[%clk 0:00:07]}  Bf5 {[%clk 0:00:03]} 50. Ba4 {[%clk 0:00:06]}  g4 {[%clk 0:00:02]} 51. c6 {[%clk 0:00:06]}  Rc8 {[%clk 0:00:01]} 52. c7 {[%clk 0:00:06]}  e5 {[%clk 0:00:02]} 53. dxe5+ {[%clk 0:00:06]}  Kxe5 {[%clk 0:00:03]} 54. Bb5 {[%clk 0:00:04]}  Kd6 {[%clk 0:00:02]} 55. Ra6+ {[%clk 0:00:03]}  Ke5 {[%clk 0:00:02]} 56. Rxh6 {[%clk 0:00:04]}  Rxc7 {[%clk 0:00:02]} 57. Be2 {[%clk 0:00:04]}  Rc3+ {[%clk 0:00:02]} 58. Kd2 {[%clk 0:00:04]}  Ra3 {[%clk 0:00:02]} 59. Rh8 {[%clk 0:00:04]}  Kf4 {[%clk 0:00:02]} 60. Rg8 {[%clk 0:00:04]}  Ra2+ {[%clk 0:00:02]} 61. Ke1 {[%clk 0:00:04]}  g3 {[%clk 0:00:02]} 62. Bf1 {[%clk 0:00:03]}  Be4 {[%clk 0:00:02]} 63. Rf8+ {[%clk 0:00:02]}  Ke3 {[%clk 0:00:02]} 0-1


[Site "https://www.chess.com"]

[Event "Titled Tuesday Blitz March 14 Early 2023"]
[White "Martinez Alcantara, Jose Eduardo"]
[Black "Sai Han Thiha"]
[WhiteFideId "3805662"]
[BlackFideId "13012290"]
[WhiteElo "2712"]
[BlackElo "1954"]
[Result "1-0"]
[Round "01"]
[TimeControl "180+2"]
[Date "2023.03.14"]
[WhiteClock "0:00:56"]
[BlackClock "0:00:04"]

1. e4 {[%clk 0:02:53]}  c6 {[%clk 0:03:00]} 2. d4 {[%clk 0:02:53]}  d5 {[%clk 0:03:00]} 3. e5 {[%clk 0:02:53]}  c5 {[%clk 0:03:01]} 4. dxc5 {[%clk 0:02:51]}  e6 {[%clk 0:03:01]} 5. c3 {[%clk 0:02:49]}  Bxc5 {[%clk 0:02:58]} 6. Bd3 {[%clk 0:02:44]}  Nc6 {[%clk 0:02:46]} 7. Nf3 {[%clk 0:02:41]}  f6 {[%clk 0:02:46]} 8. Qe2 {[%clk 0:02:29]}  fxe5 {[%clk 0:01:42]} 9. Nxe5 {[%clk 0:02:29]}  Nxe5 {[%clk 0:01:43]} 10. Qxe5 {[%clk 0:02:29]}  Qf6 {[%clk 0:01:43]} 11. Bb5+ {[%clk 0:02:02]}  Bd7 {[%clk 0:01:18]} 12. Bxd7+ {[%clk 0:02:02]}  Kxd7 {[%clk 0:01:19]} 13. Qe2 {[%clk 0:02:03]}  a6 {[%clk 0:01:19]} 14. Nd2 {[%clk 0:02:02]}  Ne7 {[%clk 0:01:18]} 15. Nf3 {[%clk 0:02:02]}  Nc6 {[%clk 0:01:17]} 16. Be3 {[%clk 0:02:03]}  Bxe3 {[%clk 0:01:12]} 17. Qxe3 {[%clk 0:02:03]}  Kc7 {[%clk 0:01:10]} 18. O-O {[%clk 0:02:03]}  e5 {[%clk 0:01:03]} 19. Rfe1 {[%clk 0:02:03]}  Rhe8 {[%clk 0:01:03]} 20. b4 {[%clk 0:01:55]}  Rad8 {[%clk 0:00:49]} 21. b5 {[%clk 0:01:55]}  axb5 {[%clk 0:00:49]} 22. Qc5 {[%clk 0:01:52]}  d4 {[%clk 0:00:38]} 23. cxd4 {[%clk 0:01:38]}  exd4 {[%clk 0:00:39]} 24. Red1 {[%clk 0:01:19]}  Kb8 {[%clk 0:00:22]} 25. Qxb5 {[%clk 0:01:14]}  Rd7 {[%clk 0:00:23]} 26. Rab1 {[%clk 0:01:14]}  Red8 {[%clk 0:00:23]} 27. Nd2 {[%clk 0:01:05]}  Qe5 {[%clk 0:00:21]} 28. Qxc6 {[%clk 0:00:59]}  d3 {[%clk 0:00:16]} 29. Qf3 {[%clk 0:00:55]}  Qe2 {[%clk 0:00:15]} 30. h3 {[%clk 0:00:55]}  Re8 {[%clk 0:00:11]} 31. a4 {[%clk 0:00:52]}  Rc7 {[%clk 0:00:09]} 32. a5 {[%clk 0:00:51]}  Qxf3 {[%clk 0:00:05]} 33. Nxf3 {[%clk 0:00:52]}  Rd8 {[%clk 0:00:03]} 34. a6 {[%clk 0:00:53]}  Ka7 {[%clk 0:00:03]} 35. Rxb7+ {[%clk 0:00:54]}  Rxb7 {[%clk 0:00:02]} 36. axb7 {[%clk 0:00:55]}  Kxb7 {[%clk 0:00:03]} 37. Rd2 {[%clk 0:00:55]}  Kb6 {[%clk 0:00:03]} 38. Ne5 {[%clk 0:00:55]}  Rd5 {[%clk 0:00:03]} 39. Nxd3 {[%clk 0:00:55]}  Kb5 {[%clk 0:00:04]} 40. Rd1 {[%clk 0:00:56]} 1-0


[Site "https://www.chess.com"]

[Event "Titled Tuesday Blitz March 14 Early 2023"]
[White "Kozin, Yuri"]
[Black "Vokhidov, Shamsiddin"]
[WhiteFideId "4129920"]
[BlackFideId "14204223"]
[WhiteElo "2528"]
[BlackElo "2570"]
[Result "0-1"]
[Round "01"]
[TimeControl "180+2"]
[Date "2023.03.14"]
[WhiteClock "0:00:10"]
[BlackClock "0:00:54"]

1. e4 {[%clk 0:02:57]}  g6 {[%clk 0:02:58]} 2. d4 {[%clk 0:02:57]}  Nf6 {[%clk 0:02:59]} 3. e5 {[%clk 0:02:56]}  Nh5 {[%clk 0:02:59]} 4. Be2 {[%clk 0:02:52]}  d6 {[%clk 0:02:59]} 5. Bxh5 {[%clk 0:02:49]}  gxh5 {[%clk 0:03:00]} 6. Qxh5 {[%clk 0:02:47]}  dxe5 {[%clk 0:03:00]} 7. Qxe5 {[%clk 0:02:46]}  Rg8 {[%clk 0:03:00]} 8. Qe4 {[%clk 0:02:40]}  Rg4 {[%clk 0:02:54]} 9. Qxh7 {[%clk 0:02:35]}  Qxd4 {[%clk 0:02:54]} 10. Ne2 {[%clk 0:02:27]}  Qd5 {[%clk 0:02:50]} 11. Nbc3 {[%clk 0:02:15]}  Qxg2 {[%clk 0:02:49]} 12. Rg1 {[%clk 0:02:14]}  Qf3 {[%clk 0:02:49]} 13. Be3 {[%clk 0:01:35]}  Bf5 {[%clk 0:02:39]} 14. Qh8 {[%clk 0:01:33]}  Rxg1+ {[%clk 0:02:37]} 15. Nxg1 {[%clk 0:01:32]}  Qg4 {[%clk 0:02:38]} 16. Nge2 {[%clk 0:01:20]}  Nd7 {[%clk 0:02:28]} 17. O-O-O {[%clk 0:01:16]}  O-O-O {[%clk 0:02:27]} 18. Qd4 {[%clk 0:01:16]}  Qxd4 {[%clk 0:02:22]} 19. Nxd4 {[%clk 0:01:17]}  Bg6 {[%clk 0:02:20]} 20. f4 {[%clk 0:01:12]}  e6 {[%clk 0:02:17]} 21. f5 {[%clk 0:01:10]}  exf5 {[%clk 0:02:16]} 22. Rf1 {[%clk 0:01:09]}  Bd6 {[%clk 0:02:03]} 23. Nxf5 {[%clk 0:01:05]}  Bxh2 {[%clk 0:02:03]} 24. Ne7+ {[%clk 0:00:58]}  Kb8 {[%clk 0:02:03]} 25. Nxg6 {[%clk 0:00:49]}  fxg6 {[%clk 0:02:04]} 26. Rf7 {[%clk 0:00:45]}  Ne5 {[%clk 0:01:17]} 27. Rg7 {[%clk 0:00:38]}  b6 {[%clk 0:01:04]} 28. a4 {[%clk 0:00:37]}  a6 {[%clk 0:01:02]} 29. Ne2 {[%clk 0:00:31]}  Nc4 {[%clk 0:01:00]} 30. Bf4 {[%clk 0:00:28]}  Bxf4+ {[%clk 0:00:52]} 31. Nxf4 {[%clk 0:00:29]}  Rf8 {[%clk 0:00:52]} 32. b3 {[%clk 0:00:10]}  Rxf4 {[%clk 0:00:53]} 33. bxc4 {[%clk 0:00:10]}  Rxc4 {[%clk 0:00:54]} 34. Rxg6 {[%clk 0:00:10]}  Rxa4 {[%clk 0:00:54]} 0-1


[Site "https://www.chess.com"]

[Event "Titled Tuesday Blitz March 14 Early 2023"]
[White "Vallejo Pons, Francisco"]
[Black "Turzo, Attila"]
[WhiteFideId "2205530"]
[BlackFideId "704954"]
[WhiteElo "2589"]
[BlackElo "2527"]
[Result "1-0"]
[Round "01"]
[TimeControl "180+2"]
[Date "2023.03.14"]
[WhiteClock "0:00:13"]
[BlackClock "0:00:11"]

1. e4 {[%clk 0:02:57]}  c5 {[%clk 0:02:54]} 2. b3 {[%clk 0:02:55]}  Nc6 {[%clk 0:02:52]} 3. Bb2 {[%clk 0:02:56]}  e5 {[%clk 0:02:43]} 4. Bc4 {[%clk 0:02:55]}  Nf6 {[%clk 0:02:39]} 5. d3 {[%clk 0:02:55]}  Be7 {[%clk 0:02:33]} 6. Nc3 {[%clk 0:02:54]}  O-O {[%clk 0:02:33]} 7. Nge2 {[%clk 0:02:53]}  d6 {[%clk 0:02:24]} 8. O-O {[%clk 0:02:52]}  a6 {[%clk 0:02:01]} 9. a4 {[%clk 0:02:51]}  Nd4 {[%clk 0:01:54]} 10. f4 {[%clk 0:02:27]}  Be6 {[%clk 0:01:33]} 11. a5 {[%clk 0:02:14]}  Nxe2+ {[%clk 0:01:01]} 12. Qxe2 {[%clk 0:02:11]}  exf4 {[%clk 0:00:59]} 13. Rxf4 {[%clk 0:02:07]}  d5 {[%clk 0:00:57]} 14. exd5 {[%clk 0:02:03]}  Bd6 {[%clk 0:00:41]} 15. Rxf6 {[%clk 0:01:52]}  Qxf6 {[%clk 0:00:38]} 16. dxe6 {[%clk 0:01:51]}  Qd4+ {[%clk 0:00:28]} 17. Kh1 {[%clk 0:01:49]}  fxe6 {[%clk 0:00:28]} 18. Na4 {[%clk 0:00:25]}  Qf4 {[%clk 0:00:20]} 19. g3 {[%clk 0:00:24]}  Qf3+ {[%clk 0:00:19]} 20. Qxf3 {[%clk 0:00:24]}  Rxf3 {[%clk 0:00:20]} 21. Bxe6+ {[%clk 0:00:22]}  Kh8 {[%clk 0:00:21]} 22. Bd5 {[%clk 0:00:20]}  Rf2 {[%clk 0:00:20]} 23. Re1 {[%clk 0:00:19]}  Rb8 {[%clk 0:00:18]} 24. c4 {[%clk 0:00:17]}  Rd2 {[%clk 0:00:18]} 25. Be5 {[%clk 0:00:14]}  Bxe5 {[%clk 0:00:13]} 26. Rxe5 {[%clk 0:00:15]}  Rxd3 {[%clk 0:00:13]} 27. Nxc5 {[%clk 0:00:14]}  Rd1+ {[%clk 0:00:11]} 28. Kg2 {[%clk 0:00:14]}  b6 {[%clk 0:00:11]} 29. axb6 {[%clk 0:00:13]}  Rxb6 {[%clk 0:00:11]} 30. Re8# {[%clk 0:00:13]} 1-0


[Site "https://www.chess.com"]

[Event "Titled Tuesday Blitz March 14 Early 2023"]
[White "Wartiovaara, Oliver"]
[Black "Eljanov, Pavel"]
[WhiteFideId "513024"]
[BlackFideId "14102951"]
[WhiteElo "2214"]
[BlackElo "2598"]
[Result "0-1"]
[Round "01"]
[TimeControl "180+2"]
[Date "2023.03.14"]
[WhiteClock "0:00:32"]
[BlackClock "0:00:31"]

1. e4 {[%clk 0:02:58]}  c6 {[%clk 0:02:51]} 2. Nf3 {[%clk 0:02:52]}  d5 {[%clk 0:02:50]} 3. d3 {[%clk 0:02:52]}  dxe4 {[%clk 0:02:47]} 4. dxe4 {[%clk 0:02:53]}  Qxd1+ {[%clk 0:02:48]} 5. Kxd1 {[%clk 0:02:54]}  Nf6 {[%clk 0:02:46]} 6. Nc3 {[%clk 0:02:51]}  Nbd7 {[%clk 0:02:31]} 7. a4 {[%clk 0:02:48]}  e5 {[%clk 0:02:14]} 8. Bc4 {[%clk 0:02:39]}  Bc5 {[%clk 0:02:03]} 9. Ke2 {[%clk 0:02:34]}  a5 {[%clk 0:02:03]} 10. Ne1 {[%clk 0:02:27]}  Ke7 {[%clk 0:01:40]} 11. Nd3 {[%clk 0:02:26]}  Bd6 {[%clk 0:01:41]} 12. f3 {[%clk 0:02:25]}  Nc5 {[%clk 0:01:30]} 13. Nxc5 {[%clk 0:02:20]}  Bxc5 {[%clk 0:01:30]} 14. Be3 {[%clk 0:02:20]}  Bxe3 {[%clk 0:01:28]} 15. Kxe3 {[%clk 0:02:21]}  Ne8 {[%clk 0:01:29]} 16. Rad1 {[%clk 0:02:16]}  Nd6 {[%clk 0:01:28]} 17. Bb3 {[%clk 0:02:16]}  h5 {[%clk 0:01:28]} 18. h4 {[%clk 0:02:14]}  Ra6 {[%clk 0:01:26]} 19. Rd2 {[%clk 0:02:09]}  Rb6 {[%clk 0:01:24]} 20. Rhd1 {[%clk 0:02:09]}  Rd8 {[%clk 0:01:25]} 21. Ne2 {[%clk 0:01:58]}  f6 {[%clk 0:01:15]} 22. Nc1 {[%clk 0:01:54]}  c5 {[%clk 0:01:06]} 23. Bd5 {[%clk 0:01:20]}  Rxb2 {[%clk 0:00:59]} 24. Nd3 {[%clk 0:01:17]}  Rb6 {[%clk 0:00:58]} 25. Nxc5 {[%clk 0:01:16]}  Ne8 {[%clk 0:00:49]} 26. Bxb7 {[%clk 0:01:10]}  Rxd2 {[%clk 0:00:45]} 27. Rxd2 {[%clk 0:01:10]}  Rxb7 {[%clk 0:00:45]} 28. Nxb7 {[%clk 0:01:05]}  Bxb7 {[%clk 0:00:45]} 29. c3 {[%clk 0:01:00]}  Nd6 {[%clk 0:00:42]} 30. Rd1 {[%clk 0:00:57]}  Bc6 {[%clk 0:00:40]} 31. Rb1 {[%clk 0:00:53]}  Bxa4 {[%clk 0:00:39]} 32. Ra1 {[%clk 0:00:53]}  Bb5 {[%clk 0:00:38]} 33. g4 {[%clk 0:00:49]}  hxg4 {[%clk 0:00:37]} 34. fxg4 {[%clk 0:00:50]}  a4 {[%clk 0:00:35]} 35. g5 {[%clk 0:00:49]}  fxg5 {[%clk 0:00:33]} 36. hxg5 {[%clk 0:00:50]}  a3 {[%clk 0:00:33]} 37. Kf3 {[%clk 0:00:48]}  Nc4 {[%clk 0:00:32]} 38. Kg4 {[%clk 0:00:48]}  g6 {[%clk 0:00:32]} 39. Kf3 {[%clk 0:00:43]}  Ba4 {[%clk 0:00:32]} 40. Ke2 {[%clk 0:00:43]}  Bb3 {[%clk 0:00:32]} 41. Kd3 {[%clk 0:00:43]}  a2 {[%clk 0:00:33]} 42. Rh1 {[%clk 0:00:33]}  Kd6 {[%clk 0:00:32]} 43. Ke2 {[%clk 0:00:32]}  Na3 {[%clk 0:00:31]} 0-1


[Site "https://www.chess.com"]

[Event "Titled Tuesday Blitz March 14 Early 2023"]
[White "Makhnev, Denis"]
[Black "Kozlov, Gennady"]
[WhiteFideId "13707647"]
[BlackFideId "4191668"]
[WhiteElo "2525"]
[BlackElo "2356"]
[Result "1-0"]
[Round "01"]
[TimeControl "180+2"]
[Date "2023.03.14"]
[WhiteClock "0:00:08"]
[BlackClock "0:00:21"]

1. d4 {[%clk 0:03:00]}  e6 {[%clk 0:02:59]} 2. c4 {[%clk 0:03:01]}  b6 {[%clk 0:02:59]} 3. a3 {[%clk 0:03:00]}  Bb7 {[%clk 0:02:59]} 4. Nc3 {[%clk 0:03:00]}  Nf6 {[%clk 0:03:00]} 5. Nf3 {[%clk 0:02:58]}  Be7 {[%clk 0:03:00]} 6. d5 {[%clk 0:02:58]}  d6 {[%clk 0:03:00]} 7. e4 {[%clk 0:02:58]}  e5 {[%clk 0:03:01]} 8. Bd3 {[%clk 0:02:56]}  a5 {[%clk 0:03:00]} 9. O-O {[%clk 0:02:56]}  Na6 {[%clk 0:03:01]} 10. Rb1 {[%clk 0:02:55]}  Bc8 {[%clk 0:02:58]} 11. b4 {[%clk 0:02:50]}  axb4 {[%clk 0:02:58]} 12. axb4 {[%clk 0:02:51]}  O-O {[%clk 0:02:58]} 13. Ne1 {[%clk 0:02:38]}  Bg4 {[%clk 0:02:50]} 14. Be2 {[%clk 0:02:34]}  Bxe2 {[%clk 0:02:48]} 15. Qxe2 {[%clk 0:02:34]}  Nd7 {[%clk 0:02:43]} 16. Nc2 {[%clk 0:01:59]}  f5 {[%clk 0:02:39]} 17. exf5 {[%clk 0:01:57]}  Rxf5 {[%clk 0:02:40]} 18. Ra1 {[%clk 0:01:56]}  Qc8 {[%clk 0:02:34]} 19. Be3 {[%clk 0:01:49]}  Bg5 {[%clk 0:02:24]} 20. Ra2 {[%clk 0:01:45]}  Rb8 {[%clk 0:01:47]} 21. c5 {[%clk 0:01:28]}  bxc5 {[%clk 0:01:43]} 22. Qxa6 {[%clk 0:01:17]}  Qxa6 {[%clk 0:01:43]} 23. Rxa6 {[%clk 0:01:18]}  cxb4 {[%clk 0:01:44]} 24. Ne4 {[%clk 0:01:19]}  Bxe3 {[%clk 0:01:41]} 25. Nxe3 {[%clk 0:01:18]}  Rf4 {[%clk 0:01:40]} 26. f3 {[%clk 0:01:19]}  b3 {[%clk 0:01:32]} 27. Rc6 {[%clk 0:01:09]}  Rb7 {[%clk 0:01:25]} 28. Rb1 {[%clk 0:01:06]}  Nf6 {[%clk 0:01:17]} 29. Nxf6+ {[%clk 0:01:02]}  gxf6 {[%clk 0:01:17]} 30. Rc3 {[%clk 0:00:38]}  Rfb4 {[%clk 0:01:17]} 31. Kf2 {[%clk 0:00:36]}  Kf7 {[%clk 0:01:09]} 32. g4 {[%clk 0:00:34]}  Kg6 {[%clk 0:01:08]} 33. Rb2 {[%clk 0:00:28]}  h5 {[%clk 0:01:05]} 34. h4 {[%clk 0:00:26]}  hxg4 {[%clk 0:00:49]} 35. fxg4 {[%clk 0:00:26]}  f5 {[%clk 0:00:50]} 36. gxf5+ {[%clk 0:00:21]}  Kh5 {[%clk 0:00:50]} 37. Kg3 {[%clk 0:00:20]}  Rxh4 {[%clk 0:00:24]} 38. Rbxb3 {[%clk 0:00:20]}  Rxb3 {[%clk 0:00:24]} 39. Rxb3 {[%clk 0:00:20]}  Re4 {[%clk 0:00:25]} 40. Kf3 {[%clk 0:00:19]}  Rf4+ {[%clk 0:00:25]} 41. Ke2 {[%clk 0:00:20]}  Kg5 {[%clk 0:00:22]} 42. Rb7 {[%clk 0:00:19]}  Re4 {[%clk 0:00:21]} 43. Kd2 {[%clk 0:00:07]}  Rd4+ {[%clk 0:00:21]} 44. Kc3 {[%clk 0:00:07]}  Re4 {[%clk 0:00:21]} 45. Nc4 {[%clk 0:00:06]}  Rd4 {[%clk 0:00:17]} 46. Rxc7 {[%clk 0:00:05]}  Rxd5 {[%clk 0:00:17]} 47. Rf7 {[%clk 0:00:04]}  Rc5 {[%clk 0:00:17]} 48. Kd3 {[%clk 0:00:04]}  Rd5+ {[%clk 0:00:16]} 49. Ke2 {[%clk 0:00:04]}  Rd4 {[%clk 0:00:16]} 50. Ne3 {[%clk 0:00:05]}  Re4 {[%clk 0:00:16]} 51. Rg7+ {[%clk 0:00:05]}  Kf6 {[%clk 0:00:16]} 52. Rg6+ {[%clk 0:00:05]}  Ke7 {[%clk 0:00:17]} 53. Re6+ {[%clk 0:00:05]}  Kd7 {[%clk 0:00:17]} 54. Kf3 {[%clk 0:00:05]}  Rf4+ {[%clk 0:00:18]} 55. Kg3 {[%clk 0:00:05]}  Re4 {[%clk 0:00:17]} 56. Kf2 {[%clk 0:00:05]}  Rf4+ {[%clk 0:00:18]} 57. Ke2 {[%clk 0:00:05]}  Rxf5 {[%clk 0:00:17]} 58. Rh6 {[%clk 0:00:06]}  Rf7 {[%clk 0:00:17]} 59. Kd3 {[%clk 0:00:06]}  Rf4 {[%clk 0:00:17]} 60. Nc4 {[%clk 0:00:06]}  Rd4+ {[%clk 0:00:17]} 61. Kc3 {[%clk 0:00:06]}  Rd5 {[%clk 0:00:17]} 62. Nb6+ {[%clk 0:00:06]}  Kc6 {[%clk 0:00:18]} 63. Nxd5 {[%clk 0:00:07]}  Kxd5 {[%clk 0:00:19]} 64. Kd3 {[%clk 0:00:08]}  Kc5 {[%clk 0:00:19]} 65. Ke4 {[%clk 0:00:08]}  Kc6 {[%clk 0:00:20]} 66. Rh8 {[%clk 0:00:08]}  Kc5 {[%clk 0:00:21]} 67. Rc8+ {[%clk 0:00:08]} 1-0


[Site "https://www.chess.com"]